[Event "22nd Hoogeveen Open 2018"]
[Site "Hoogeveen"]
[Date "2018.10.23"]
[Round "5"]
[White "Van Dorp, Folke"]
[Black "Konings, Frans"]
[Result "0-1"]
[ECO "B23"]
[WhiteElo "2097"]
[BlackElo "2195"]
[Annotator "NA"]
[PlyCount "100"]
[EventDate "2018.10.20"]
[EventType "swiss"]
[EventCountry "NED"]
[SourceTitle "playchess.com"]
[Source "ChessBase"]
[SourceQuality "1"]
[TimeControl "40/5400+30:1800+30"]

1. e4 {[%emt 0:00:00]} c5 {[%emt 0:00:00]} 2. Nc3 {[%emt 0:00:00]} a6 {[%emt 0:00:10]} 3. g3 {[%emt 0:00:07]} b5 {[%emt 0:00:43]} 4. Bg2 {[%emt 0:00:05]} Bb7 {[%emt 0:00:04]} 5. Nh3 {[%emt 0:00:10]} e6 {[%emt 0:04:03]} 6. d3 {[%emt 0:00:28]} Nf6 {[%emt 0:03:35] B23: Closed Sicilian: Lines without g3} (6... b4 7. Ne2 d5 8. e5 Nc6 9. f4 Nh6 10. Nf2 Nf5 11. O-O Qb6 12. c3 Be7 13. g4 Nh4 14. Bh1 {0-1 (35) Yu,Y (2738)-Khismatullin,D (2639) Moscow 2017}) 7. O-O {[%emt 0:00:31]} b4 {[%emt 0:00:18]} 8. Ne2 {[%emt 0:00:06]} d5 {[%emt 0:00:10]} 9. e5 {[%emt 0:06:29] LiveBook: 5 Games} Ng4 {[%emt 0:03:59]} 10. Nef4 $146 {[%emt 0:09:16]} ({Predecessor:} 10. d4 Nc6 11. c3 Qb6 12. Nef4 Nh6 13. Ng5 O-O-O 14. dxc5 Bxc5 15. cxb4 Bxb4 {0-1 (24) Oliveros,C (2074)-Cardoso Cardoso,J (2309) Buenaventura 2018}) 10... Nxe5 {[%emt 0:01:27]} 11. Qh5 {[%emt 0:02:31]} Qf6 {[%emt 0:04:06]} 12. Re1 {[%emt 0:04:06]} Nbd7 {[%emt 0:03:25]} 13. Nxd5 {[%emt 0:08:07]} Bxd5 {[%emt 0:00:53]} 14. Bxd5 {[%emt 0:00:37]} exd5 {[%emt 0:11:26]} 15. f4 {[%emt 0:01:03]} Qg6 {[%emt 0:00:32]} 16. Qf3 {[%emt 0:07:57]} Qe6 {[%emt 0:47:38]} 17. fxe5 $17 {[%emt 0:00:26]} Nxe5 {[%emt 0:01:00]} 18. Rxe5 {[%emt 0:03:07]} Qxe5 {[%emt 0:00:03]} 19. Bf4 {[%emt 0:04:11]} Qd4+ {[%emt 0:00:21]} 20. Be3 {[%emt 0:06:34]} Qf6 {[%emt 0:00:44]} 21. Qxd5 {[%emt 0:01:03]} Rd8 {[%emt 0:00:04]} 22. Qg2 {[%emt 0:03:01]} Be7 {[%emt 0:00:28]} 23. Rf1 {[%emt 0:05:47]} Qe6 {[%emt 0:00:26]} 24. Bd2 {[%emt 0:04:28]} O-O {[%emt 0:00:23]} 25. b3 {[%emt 0:02:24]} Bf6 {[%emt 0:00:59]} 26. Kh1 {[%emt 0:02:31]} Qd5 {[%emt 0:02:11]} 27. Nf4 {[%emt 0:01:23]} Qxg2+ {[%emt 0:00:13]} 28. Kxg2 {[%emt 0:00:08]} Bg5 {[%emt 0:00:18]} 29. Be3 {[%emt 0:01:47]} Be7 {[%emt 0:04:23]} 30. h4 {[%emt 0:03:22]} Bd6 {[%emt 0:00:12]} 31. Rf3 {[%emt 0:01:44]} Rfe8 {[%emt 0:00:39]} 32. Nh3 {[%emt 0:00:29]} g6 {[%emt 0:03:19]} 33. g4 {[%emt 0:02:26]} Re5 {[%emt 0:03:52]} 34. g5 {[%emt 0:08:13]} Rf5 {[%emt 0:00:41]} 35. Nf2 {[%emt 0:01:03]} Rxf3 {[%emt 0:00:06]} 36. Kxf3 {[%emt 0:00:04]} Be7 {[%emt 0:00:28]} 37. Ne4 {[%emt 0:00:56]} Rd5 {[%emt 0:00:11]} 38. Bf4 {[%emt 0:01:52]} Kf8 {[%emt 0:00:17]} 39. Nd2 {[%emt 0:00:27]} Bd6 {[%emt 0:01:21]} 40. Be3 {[%emt 0:00:44]} Ke8 {[%emt 0:00:41]} 41. Ne4 {[%emt 0:30:15]} Be7 {[%emt 0:30:07]} 42. Nd2 {[%emt 0:05:37]} Kd7 {[%emt 0:02:01]} 43. Nc4 {[%emt 0:02:49]} Ke6 {[%emt 0:01:13]} 44. Bf4 {[%emt 0:01:33]} f6 {[%emt 0:00:15]} 45. Ne3 {[%emt 0:00:00]} Rd8 {[%emt 0:00:00]} 46. Nc4 {[%emt 0:00:00]} fxg5 {[%emt 0:00:00]} 47. hxg5 {[%emt 0:00:00]} Kd5 {[%emt 0:00:00]} 48. Ne5 {[%emt 0:00:00]} Rf8 {[%emt 0:00:00]} 49. Nd7 {[%emt 0:00:00]} Rf7 {[%emt 0:00:00]} 50. Nb6+ {[%emt 0:00:00]} Kd4 {[%emt 0:00:00]} 0-1

[Event "22nd Hoogeveen Open 2018"]
[Site "Hoogeveen"]
[Date "2018.10.23"]
[Round "5"]
[White "Mijnheer, Peter"]
[Black "Winkels, Marcel"]
[Result "1-0"]
[ECO "B84"]
[WhiteElo "2092"]
[BlackElo "1935"]
[Annotator "NA"]
[PlyCount "99"]
[EventDate "2018.10.20"]
[EventType "swiss"]
[EventCountry "NED"]
[SourceTitle "playchess.com"]
[Source "ChessBase"]
[SourceQuality "1"]
[TimeControl "40/5400+30:1800+30"]

1. e4 {[%emt 0:00:00]} c5 {[%emt 0:00:00]} 2. Nf3 {[%emt 0:00:00]} d6 {[%emt 0:00:00]} 3. d4 {[%emt 0:00:00]} cxd4 {[%emt 0:00:00]} 4. Nxd4 {[%emt 0:00:00]} Nf6 {[%emt 0:00:00]} 5. Nc3 {[%emt 0:00:06]} a6 {[%emt 0:00:02]} 6. Be2 {[%emt 0:00:07]} e6 {[%emt 0:00:55]} 7. O-O {[%emt 0:00:08]} Be7 {[%emt 0:00:15]} 8. Kh1 $11 {[%emt 0:01:56] LiveBook: 43 Games} O-O {[%emt 0:00:45]} 9. f4 {[%emt 0:00:07]} Qc7 {[%emt 0:01:06]} 10. Qe1 {[%emt 0:00:50]} b5 {[%emt 0:01:14]} 11. Bf3 {[%emt 0:25:20]} Bb7 {[%emt 0:02:42]} 12. a3 {[%emt 0:03:32]} Nbd7 {[%emt 0:03:18]} 13. g4 {[%emt 0:06:53]} Nb6 {[%emt 0:41:57]} 14. g5 {[%emt 0:03:27]} Nfd7 {[%emt 0:01:26]} 15. Bg2 {[%emt 0:02:54]} Rfe8 {[%emt 0:07:19]} 16. Qg3 {[%emt 0:01:12]} g6 {[%emt 0:05:18]} 17. Qh4 {[%emt 0:16:11]} Bf8 {[%emt 0:02:30]} 18. Nde2 {[%emt 0:08:27]} Rac8 {[%emt 0:09:38]} 19. Be3 {[%emt 0:07:51]} Nc4 {[%emt 0:00:18]} 20. Bd4 {[%emt 0:00:34]} Nc5 {[%emt 0:07:34]} 21. Rf3 {[%emt 0:03:24]} e5 {[%emt 0:01:44]} 22. fxe5 {[%emt 0:02:24]} dxe5 {[%emt 0:00:46]} 23. Bxc5 {[%emt 0:03:38]} Bxc5 {[%emt 0:01:04]} 24. Raf1 {[%emt 0:01:45]} Re7 {[%emt 0:02:28]} 25. Qh6 {[%emt 0:01:11]} f5 {[%emt 0:02:58]} 26. gxf6 {[%emt 0:02:01]} Rf7 {[%emt 0:00:10]} 27. Rd3 {[%emt 0:01:26]} Rcf8 {[%emt 0:01:34]} 28. Ng3 {[%emt 0:02:03]} Rxf6 {[%emt 0:02:27]} 29. Rxf6 {[%emt 0:00:32]} Rxf6 {[%emt 0:00:02]} 30. Nd5 {[%emt 0:00:49]} Bxd5 {[%emt 0:00:19]} 31. exd5 {[%emt 0:00:12]} Nd6 {[%emt 0:02:47]} 32. Bh3 {[%emt 0:00:57]} Nf7 {[%emt 0:01:34]} 33. Qc1 {[%emt 0:01:02]} Kg7 {[%emt 0:00:32]} 34. Ne4 {[%emt 0:00:42]} Rf4 {[%emt 0:00:09]} 35. Bg2 {[%emt 0:00:01]} Bd6 {[%emt 0:01:31]} 36. b3 {[%emt 0:00:33]} Qe7 {[%emt 0:00:17]} 37. a4 {[%emt 0:00:59]} Ng5 {[%emt 0:00:45]} 38. Nxd6 {[%emt 0:03:03]} Qxd6 {[%emt 0:00:02]} 39. axb5 {[%emt 0:00:29]} axb5 {[%emt 0:00:42]} 40. c4 {[%emt 0:01:27]} bxc4 {[%emt 0:00:36]} 41. bxc4 {[%emt 0:30:02]} e4 {[%emt 0:06:22]} 42. c5 {[%emt 0:00:00]} Qf6 {[%emt 0:01:30]} 43. Rd1 {[%emt 0:00:00]} Rf2 {[%emt 0:05:30]} 44. Qe3 {[%emt 0:00:00]} Rc2 {[%emt 0:07:03]} 45. c6 {[%emt 0:00:00]} Qe5 {[%emt 0:01:44]} 46. Qg3 {[%emt 0:00:00]} Qf6 {[%emt 0:06:36]} 47. Rf1 {[%emt 0:00:00]} Qd8 {[%emt 0:01:25]} 48. Qe5+ {[%emt 0:02:07]} Kg8 {[%emt 0:03:21]} 49. d6 {[%emt 0:00:34]} Rxc6 {[%emt 0:00:39]} 50. Qd5+ {[%emt 0:00:03]} 1-0

[Event "22nd Hoogeveen Open 2018"]
[Site "Hoogeveen"]
[Date "2018.10.23"]
[Round "5"]
[White "Biermann, Florian"]
[Black "Van Foreest, Machteld"]
[Result "1/2-1/2"]
[ECO "A26"]
[WhiteElo "2024"]
[BlackElo "1934"]
[Annotator "NA"]
[PlyCount "80"]
[EventDate "2018.10.20"]
[EventType "swiss"]
[EventCountry "NED"]
[SourceTitle "playchess.com"]
[Source "ChessBase"]
[SourceQuality "1"]
[TimeControl "40/5400+30:1800+30"]

1. c4 {[%emt 0:00:00]} e5 {[%emt 0:00:00]} 2. g3 {[%emt 0:00:00]} Nc6 {[%emt 0:00:00]} 3. Bg2 {[%emt 0:00:00]} f5 {[%emt 0:00:00]} 4. Nc3 {[%emt 0:00:00]} Nf6 {[%emt 0:00:00]} 5. d3 {[%emt 0:02:05]} g6 {[%emt 0:01:26]} 6. e4 {[%emt 0:00:45]} d6 {[%emt 0:00:57]} 7. Nge2 {[%emt 0:00:09]} Bg7 {[%emt 0:01:04]} 8. O-O {[%emt 0:00:31]} O-O {[%emt 0:00:26]} 9. Nd5 {[%emt 0:01:04]} h6 {[%emt 0:05:32]} 10. h3 {[%emt 0:04:36]} Be6 {[%emt 0:02:19]} 11. Be3 {[%emt 0:05:24]} Qd7 {[%emt 0:02:39] LiveBook: 5 Games} 12. exf5 $11 {[%emt 0:01:01]} Bxf5 {[%emt 0:05:08]} 13. g4 {[%emt 0:02:24]} Be6 {[%emt 0:00:51]} 14. Qd2 {[%emt 0:09:25]} Kh7 {[%emt 0:02:21]} 15. Rac1 {[%emt 0:08:50]} a5 {[%emt 0:04:41]} 16. d4 {[%emt 0:06:24]} exd4 {[%emt 0:05:11]} 17. Nxd4 {[%emt 0:00:39]} Bg8 {[%emt 0:08:47]} 18. b3 {[%emt 0:12:57]} a4 {[%emt 0:08:46]} 19. b4 {[%emt 0:11:16]} Ne5 {[%emt 0:05:37]} 20. Qe2 {[%emt 0:04:34]} Rab8 {[%emt 0:09:56]} 21. f4 {[%emt 0:05:38]} Nc6 {[%emt 0:02:03]} 22. Qd2 {[%emt 0:02:15]} Rfe8 {[%emt 0:02:01]} 23. f5 {[%emt 0:03:30]} g5 {[%emt 0:02:45]} 24. Nxc6 {[%emt 0:03:29]} bxc6 {[%emt 0:00:31]} 25. Nxf6+ {[%emt 0:00:00]} Bxf6 {[%emt 0:00:03]} 26. Bd4 {[%emt 0:01:45]} Qg7 {[%emt 0:11:01]} 27. Bxf6 {[%emt 0:00:46]} Qxf6 {[%emt 0:00:02]} 28. Bxc6 {[%emt 0:01:08]} Re5 {[%emt 0:02:32]} 29. Bxa4 {[%emt 0:01:51]} d5 {[%emt 0:02:16]} 30. Bb3 {[%emt 0:01:12]} Rbe8 {[%emt 0:03:15]} 31. cxd5 {[%emt 0:00:30]} Re3 {[%emt 0:02:18]} 32. Rxc7+ {[%emt 0:00:12]} Kh8 {[%emt 0:00:46]} 33. Qc1 {[%emt 0:06:05]} Qd4 {[%emt 0:02:11]} 34. Rc4 {[%emt 0:03:46]} Rg3+ {[%emt 0:00:24]} 35. Kh2 {[%emt 0:01:19]} Re2+ {[%emt 0:00:17]} 36. Kxg3 {[%emt 0:00:09]} Qe5+ {[%emt 0:02:00]} 37. Rcf4 {[%emt 0:00:25]} gxf4+ {[%emt 0:01:26]} 38. Qxf4 {[%emt 0:00:24]} Qc3+ {[%emt 0:00:19]} 39. Kh4 {[%emt 0:01:42]} Qf6+ {[%emt 0:01:22]} 40. Kg3 {[%emt 0:00:06]} Qc3+ {[%emt 0:02:16]} 1/2-1/2

[Event "22nd Hoogeveen Open 2018"]
[Site "Hoogeveen"]
[Date "2018.10.23"]
[Round "5"]
[White "Van Randtwijk, Mick"]
[Black "Li, Henry"]
[Result "0-1"]
[ECO "C77"]
[WhiteElo "1979"]
[BlackElo "2207"]
[Annotator "NA"]
[PlyCount "88"]
[EventDate "2018.10.20"]
[EventType "swiss"]
[EventCountry "NED"]
[SourceTitle "playchess.com"]
[Source "ChessBase"]
[SourceQuality "1"]
[TimeControl "40/5400+30:1800+30"]

1. e4 {[%emt 0:00:00]} e5 {[%emt 0:00:00]} 2. Nf3 {[%emt 0:00:00]} Nc6 {[%emt 0:00:00]} 3. Bb5 {[%emt 0:00:00]} a6 {[%emt 0:00:00]} 4. Ba4 {[%emt 0:00:00]} Nf6 {[%emt 0:00:02]} 5. d3 {[%emt 0:00:00]} d6 {[%emt 0:00:07]} 6. c4 {[%emt 0:00:09]} g6 {[%emt 0:00:08]} 7. Nc3 {[%emt 0:00:15]} Bg7 {[%emt 0:01:08]} 8. Nd5 {[%emt 0:00:25] LiveBook: 23 Games C77: Ruy Lopez: 3...a6 4 Ba4 Nf6, unusual lines} O-O {[%emt 0:06:39]} 9. Bg5 {[%emt 0:00:36]} Bg4 $146 {[%emt 0:08:41]} ({Predecessor:} 9... Nb8 10. d4 c6 11. dxe5 dxe5 12. Nxf6+ Bxf6 13. Qxd8 Bxd8 14. Bxd8 Rxd8 15. Nxe5 Re8 {1-0 (63) Tiviakov,S (2583)-Ernst,S (2546) Amsterdam 2018}) 10. h3 $1 {[%emt 0:08:01]} Bxf3 $2 {[%emt 0:01:49]} (10... Be6 $14) 11. Qxf3 {[%emt 0:00:05]} Nd4 {[%emt 0:11:48]} 12. Qxf6 {[%emt 0:00:09]} Qb8 {[%emt 0:01:19]} 13. Qe7 {[%emt 0:13:23]} b5 {[%emt 0:10:13]} 14. Bb3 {[%emt 0:07:31]} bxc4 {[%emt 0:07:07]} 15. dxc4 {[%emt 0:01:54]} f6 {[%emt 0:07:46]} 16. Qxc7 {[%emt 0:06:28]} fxg5 {[%emt 0:03:04]} 17. O-O {[%emt 0:07:12]} a5 {[%emt 0:03:04]} 18. Qe7 {[%emt 0:02:59]} a4 {[%emt 0:14:43]} 19. Bd1 {[%emt 0:00:36]} h6 {[%emt 0:03:04]} 20. Qd7 {[%emt 0:07:36]} Rf7 {[%emt 0:05:29]} 21. Qg4 {[%emt 0:02:32]} Qxb2 {[%emt 0:00:40]} 22. Bf3 {[%emt 0:00:22]} Kh7 {[%emt 0:02:10]} 23. Rfb1 {[%emt 0:04:12]} Qa3 {[%emt 0:00:25]} 24. Bd1 {[%emt 0:01:12]} Qc5 {[%emt 0:02:45]} 25. Rb4 {[%emt 0:07:00]} Raf8 {[%emt 0:01:14]} 26. Bxa4 {[%emt 0:00:14]} Rxf2 {[%emt 0:01:21]} 27. Rb7 {[%emt 0:00:07]} Nc2 {[%emt 0:02:32]} 28. Bxc2 {[%emt 0:01:47]} R2f7+ {[%emt 0:01:44]} 29. Kh2 {[%emt 0:00:55]} Rxb7 {[%emt 0:00:06]} 30. Bb3 {[%emt 0:04:58]} Rbf7 {[%emt 0:00:13]} 31. Qe2 {[%emt 0:01:19]} Rf2 {[%emt 0:00:37]} 32. Qe1 $19 {[%emt 0:01:23]} (32. Qe3 $142) 32... Qd4 {[%emt 0:01:01]} 33. Rd1 {[%emt 0:01:40]} Qb2 {[%emt 0:00:11]} 34. Ne3 {[%emt 0:00:05]} Re2 {[%emt 0:00:40]} 35. Qg3 {[%emt 0:00:33]} Rff2 {[%emt 0:00:49]} 36. Rg1 {[%emt 0:01:33]} Qd4 {[%emt 0:01:21]} 37. Ng4 {[%emt 0:03:24]} Rf4 {[%emt 0:00:45]} 38. Rd1 {[%emt 0:02:34]} Qxe4 {[%emt 0:00:41]} 39. Rxd6 {[%emt 0:00:14]} h5 {[%emt 0:01:18]} 40. c5 {[%emt 0:00:05]} hxg4 {[%emt 0:01:20]} 41. c6 {[%emt 0:30:05]} Rff2 {[%emt 0:31:20]} 42. Bg8+ {[%emt 0:01:01]} Kxg8 {[%emt 0:00:00]} 43. Qb3+ {[%emt 0:00:00]} Kh7 {[%emt 0:00:00]} 44. c7 {[%emt 0:00:00]} Qxg2# {[%emt 0:00:00]} 0-1

[Event "22nd Hoogeveen Open 2018"]
[Site "Hoogeveen"]
[Date "2018.10.23"]
[Round "5"]
[White "Maters, Arthur"]
[Black "Jelic, Bruno"]
[Result "1-0"]
[ECO "B07"]
[WhiteElo "1933"]
[BlackElo "2076"]
[Annotator "NA"]
[PlyCount "111"]
[EventDate "2018.10.20"]
[EventType "swiss"]
[EventCountry "NED"]
[SourceTitle "playchess.com"]
[Source "ChessBase"]
[SourceQuality "1"]
[TimeControl "40/5400+30:1800+30"]

1. e4 {[%emt 0:00:00]} g6 {[%emt 0:00:01]} 2. d4 {[%emt 0:00:00]} Bg7 {[%emt 0:00:15]} 3. Nc3 {[%emt 0:00:00]} d6 {[%emt 0:00:17]} 4. Bc4 {[%emt 0:00:00]} Nf6 {[%emt 0:02:10]} 5. Qe2 {[%emt 0:00:02] LiveBook: 153 Games} c6 {[%emt 0:03:01]} 6. e5 {[%emt 0:01:32]} dxe5 {[%emt 0:01:38]} 7. dxe5 {[%emt 0:00:08]} Nd5 $1 {[%emt 0:00:45]} 8. Bd2 {[%emt 0:02:13]} O-O {[%emt 0:03:26] B07: Pirc Defence: Miscellaneous Systems} (8... Nd7 9. Nxd5 cxd5 10. Bxd5 Nxe5 11. Bb3 a5 12. Ba4+ Nc6 13. c3 O-O 14. Nf3 Bf5 15. Bg5 Bd3 16. Qe3 {0-1 (30) Toma,K (2280)-Vovk,Y (2600) Fagernes 2018}) 9. f4 {[%emt 0:13:25]} Be6 {[%emt 0:04:02]} 10. Nf3 {[%emt 0:03:55]} Nxc3 {[%emt 0:02:21]} 11. Bxc3 {[%emt 0:02:20]} Bxc4 {[%emt 0:00:48]} 12. Qxc4 {[%emt 0:00:10]} Qd5 {[%emt 0:00:36]} 13. Qe2 {[%emt 0:11:49]} c5 $146 {[%emt 0:09:26]} ({Predecessor:} 13... Rd8 14. O-O Qc5+ 15. Kh1 e6 16. Ng5 {1-0 (42) Eiber,M (2339)-Sternheimer,E Fuerth 1999}) 14. O-O {[%emt 0:02:01]} e6 {[%emt 0:12:03]} 15. Rfd1 {[%emt 0:02:14]} Qc6 {[%emt 0:02:32]} 16. Ng5 {[%emt 0:06:58]} Na6 {[%emt 0:01:05]} 17. Ne4 {[%emt 0:11:23]} Rad8 {[%emt 0:02:03]} 18. Rf1 {[%emt 0:07:53]} Nc7 {[%emt 0:01:52]} 19. g4 {[%emt 0:03:17]} Nd5 {[%emt 0:05:51]} 20. g5 {[%emt 0:01:18]} Nxc3 {[%emt 0:02:58]} 21. bxc3 {[%emt 0:00:18]} Rd5 {[%emt 0:02:25]} 22. Rf3 {[%emt 0:01:30]} Rfd8 {[%emt 0:00:59]} 23. Rh3 {[%emt 0:01:10]} c4 {[%emt 0:05:30]} 24. Re1 {[%emt 0:07:17]} b5 {[%emt 0:06:35]} 25. Qg4 {[%emt 0:02:59]} Qd7 {[%emt 0:05:48]} 26. Kf2 $11 {[%emt 0:06:10]} (26. Qh4 $14 Kf8 27. Qxh7) 26... Rd1 {[%emt 0:02:42]} 27. Re2 {[%emt 0:00:04]} Rc1 {[%emt 0:03:00]} 28. Nd6 {[%emt 0:02:50]} Qc6 {[%emt 0:01:31]} 29. Rhe3 {[%emt 0:04:55]} Qh1 {[%emt 0:03:05]} 30. Qg2 {[%emt 0:00:38]} Qd1 {[%emt 0:01:12]} 31. Kg3 {[%emt 0:00:23]} a6 {[%emt 0:04:50]} 32. Qb7 {[%emt 0:03:22]} Qg1+ {[%emt 0:01:11]} 33. Kh4 {[%emt 0:00:05]} Rf1 {[%emt 0:01:31]} 34. Qxf7+ {[%emt 0:02:09]} Kh8 {[%emt 0:00:37]} 35. Rg3 {[%emt 0:00:12]} Qb6 {[%emt 0:03:25]} 36. Ne8 {[%emt 0:00:10]} Rxf4+ {[%emt 0:01:27]} 37. Qxf4 {[%emt 0:00:06]} Rxe8 {[%emt 0:00:20]} 38. Qe3 {[%emt 0:00:27]} Qd8 {[%emt 0:02:08]} 39. Rd2 {[%emt 0:00:41]} Qe7 {[%emt 0:00:43]} 40. Kh3 {[%emt 0:00:37]} Rf8 {[%emt 0:01:21]} 41. Rf3 {[%emt 0:05:49]} Rc8 {[%emt 0:01:54]} 42. Rdf2 {[%emt 0:00:00]} Qc7 {[%emt 0:01:50]} 43. Rf7 {[%emt 0:04:02]} Qb8 {[%emt 0:02:59]} 44. Rd7 {[%emt 0:05:45]} Qxe5 {[%emt 0:01:17]} 45. Qxe5 {[%emt 0:00:05]} Bxe5 {[%emt 0:00:08]} 46. Rff7 {[%emt 0:00:45]} Bxc3 {[%emt 0:00:28]} 47. Rxh7+ {[%emt 0:00:05]} Kg8 {[%emt 0:00:15]} 48. Rhe7 {[%emt 0:00:24]} e5 {[%emt 0:00:36]} 49. Rg7+ {[%emt 0:00:30]} Kf8 {[%emt 0:01:01]} 50. Rxg6 {[%emt 0:00:58]} e4 {[%emt 0:01:01]} 51. Re6 {[%emt 0:00:44]} Re8 {[%emt 0:00:37]} 52. Rdd6 {[%emt 0:00:07]} Rxe6 {[%emt 0:02:07]} 53. Rxe6 {[%emt 0:00:11]} Bd2 {[%emt 0:00:20]} 54. Rxe4 {[%emt 0:00:36]} Bxg5 {[%emt 0:00:17]} 55. Re6 {[%emt 0:00:08]} a5 {[%emt 0:01:27]} 56. Re5 {[%emt 0:00:10]} 1-0

[Event "22nd Hoogeveen Open 2018"]
[Site "Hoogeveen"]
[Date "2018.10.23"]
[Round "5"]
[White "Shakhverdian, William"]
[Black "Vroombout, Enrico"]
[Result "0-1"]
[ECO "A59"]
[WhiteElo "1903"]
[BlackElo "2132"]
[Annotator "NA"]
[PlyCount "148"]
[EventDate "2018.10.20"]
[EventType "swiss"]
[EventCountry "NED"]
[SourceTitle "playchess.com"]
[Source "ChessBase"]
[SourceQuality "1"]
[TimeControl "40/5400+30:1800+30"]

1. d4 {[%emt 0:00:00]} Nf6 {[%emt 0:00:00]} 2. c4 {[%emt 0:00:00]} c5 {[%emt 0:00:29]} 3. d5 {[%emt 0:00:00]} b5 {[%emt 0:00:06]} 4. cxb5 {[%emt 0:00:13]} a6 {[%emt 0:00:04]} 5. bxa6 {[%emt 0:00:05]} g6 {[%emt 0:00:11]} 6. Nc3 {[%emt 0:00:05]} Bxa6 {[%emt 0:00:04]} 7. e4 {[%emt 0:00:04]} Bxf1 {[%emt 0:00:06]} 8. Kxf1 {[%emt 0:00:05]} d6 {[%emt 0:00:09]} 9. g3 {[%emt 0:00:04]} Bg7 {[%emt 0:00:04]} 10. Kg2 {[%emt 0:01:19]} Nbd7 {[%emt 0:00:15]} 11. Nf3 {[%emt 0:00:21]} O-O {[%emt 0:00:05]} 12. a4 {[%emt 0:04:17]} Ra6 {[%emt 0:05:45]} 13. Qe2 {[%emt 0:03:20]} Qa8 {[%emt 0:00:30] LiveBook: 3 Games} 14. Ra2 $14 {[%emt 0:08:27]} Rb8 {[%emt 0:17:58]} 15. Nd2 {[%emt 0:13:05]} Ne8 {[%emt 0:04:32]} 16. Nc4 {[%emt 0:02:20]} Nb6 {[%emt 0:13:10]} 17. Nxb6 {[%emt 0:01:49]} Rbxb6 {[%emt 0:10:50]} 18. Be3 {[%emt 0:04:32]} Rb4 {[%emt 0:15:12]} 19. Qc2 {[%emt 0:05:03]} Nf6 {[%emt 0:09:12]} 20. Bd2 {[%emt 0:04:36]} Ng4 {[%emt 0:04:04]} 21. b3 {[%emt 0:09:06]} c4 {[%emt 0:03:41]} 22. bxc4 {[%emt 0:00:17]} Qa7 {[%emt 0:04:55]} 23. Nd1 {[%emt 0:04:46]} Rbxa4 {[%emt 0:00:09]} 24. Rxa4 {[%emt 0:00:26]} Rxa4 {[%emt 0:00:03]} 25. Be3 {[%emt 0:11:06]} Qa6 {[%emt 0:03:20]} 26. h3 {[%emt 0:06:06]} Rxc4 {[%emt 0:04:29]} 27. Qe2 {[%emt 0:00:07]} Nf6 {[%emt 0:01:13]} 28. Nb2 {[%emt 0:00:16]} Ra4 {[%emt 0:00:03]} 29. Qxa6 {[%emt 0:00:35]} Rxa6 {[%emt 0:00:02]} 30. Rc1 {[%emt 0:00:20]} h5 {[%emt 0:00:57]} 31. Rc8+ {[%emt 0:08:32]} Kh7 {[%emt 0:00:05]} 32. Rc7 {[%emt 0:00:33]} Nxe4 {[%emt 0:00:32]} 33. Rxe7 {[%emt 0:01:23]} Bxb2 {[%emt 0:01:22]} 34. Rxe4 {[%emt 0:00:05]} Ra5 {[%emt 0:00:39]} 35. Rb4 {[%emt 0:02:50]} Be5 {[%emt 0:01:45]} 36. f4 {[%emt 0:04:03]} Bf6 {[%emt 0:00:03]} 37. Bd4 {[%emt 0:02:43]} Kg7 {[%emt 0:00:31]} 38. Bxf6+ {[%emt 0:00:35]} Kxf6 {[%emt 0:00:04]} 39. Rd4 {[%emt 0:00:04]} Ra2+ {[%emt 0:01:08]} 40. Kf3 {[%emt 0:00:12]} Ra3+ {[%emt 0:00:05]} 41. Kf2 {[%emt 0:32:28]} h4 {[%emt 0:30:26]} 42. gxh4 {[%emt 0:01:28]} Rxh3 {[%emt 0:00:18]} 43. Ra4 {[%emt 0:00:00]} Kf5 {[%emt 0:00:00]} 44. Ra7 {[%emt 0:00:00]} f6 {[%emt 0:00:00]} 45. Rd7 {[%emt 0:00:00]} Rxh4 {[%emt 0:00:00]} 46. Rxd6 {[%emt 0:00:00]} Rxf4+ {[%emt 0:00:00]} 47. Ke3 {[%emt 0:00:00]} Ke5 {[%emt 0:00:00]} 48. Rd8 {[%emt 0:00:00]} Re4+ {[%emt 0:00:00]} 49. Kf3 {[%emt 0:00:00]} Rd4 {[%emt 0:00:00]} 50. Rg8 {[%emt 0:00:00]} g5 {[%emt 0:00:00]} 51. Re8+ {[%emt 0:00:00]} Kxd5 {[%emt 0:00:00]} 52. Ke3 {[%emt 0:00:00]} Ra4 {[%emt 0:00:00]} 53. Kf3 {[%emt 0:00:00]} f5 {[%emt 0:00:00]} 54. Kg3 {[%emt 0:00:00]} Ra3+ {[%emt 0:00:00]} 55. Kf2 {[%emt 0:00:00]} Ra2+ {[%emt 0:00:00]} 56. Kf3 {[%emt 0:00:00]} Ra3+ {[%emt 0:00:00]} 57. Kf2 {[%emt 0:00:00]} Ra6 {[%emt 0:00:00]} 58. Kf3 {[%emt 0:00:00]} Re6 {[%emt 0:00:00]} 59. Rg8 {[%emt 0:00:00]} g4+ {[%emt 0:00:00]} 60. Kf4 {[%emt 0:00:00]} Rf6 {[%emt 0:00:00]} 61. Re8 {[%emt 0:00:00]} Rf7 {[%emt 0:00:00]} 62. Re1 {[%emt 0:00:00]} Kd4 {[%emt 0:00:00]} 63. Rd1+ {[%emt 0:00:00]} Kc3 {[%emt 0:00:00]} 64. Rd8 {[%emt 0:00:00]} Kc2 {[%emt 0:00:00]} 65. Rd5 {[%emt 0:00:00]} Rg7 {[%emt 0:00:11]} 66. Kg3 {[%emt 0:00:00]} f4+ {[%emt 0:00:10]} 67. Kxf4 {[%emt 0:00:00]} g3 {[%emt 0:00:03]} 68. Rc5+ {[%emt 0:00:00]} Kd2 {[%emt 0:00:14]} 69. Rd5+ {[%emt 0:00:00]} Ke2 {[%emt 0:00:09]} 70. Re5+ {[%emt 0:00:00]} Kf2 {[%emt 0:00:26]} 71. Ra5 {[%emt 0:00:00]} g2 {[%emt 0:01:16]} 72. Ra2+ {[%emt 0:00:00]} Kg1 {[%emt 0:00:29]} 73. Ra1+ {[%emt 0:00:47]} Kh2 {[%emt 0:00:06]} 74. Ra2 {[%emt 0:00:08]} Kh1 {[%emt 0:00:08]} 0-1